Workbook

Sheet FRONT PAGE
D1: MAIN DETAILS | I1: YOUR | M1: PRINTING MATRIX | S1: YOUR | W1: TRIMS/STONES DETAIL | AA1: SEASON: | AC1: YOUR | AG1: EMBROIDERY MATRIX | AK1: SEASON: | AM1: YOUR | AN1: WASHING MATRIX | AR1: SEASON: | AV1: YOUR | AW1: LABEL INFORMATION | BA1: SEASON: | BC1: YOUR
A2: STYLE NAME: | H2: SEASON: | I2: LOGO | J2: STYLE NAME: | Q2: SEASON: | S2: LOGO | T2: STYLE NAME: | AC2: LOGO | AD2: STYLE NAME: | AM2: LOGO | AV2: LOGO | BC2: LOGO
AG3: BODY COLOR | AH3: THREAD COLOR | AI3: # STITCHES | AJ3: STITCH TYPE
A4: PRODUCT DESCRIPTION: | J4: SCREEN | K4: SCREEN SIZE | M4: BODY COLOR | N4: BODY COLOR | O4: BODY COLOR | P4: BODY COLOR | Q4: BODY COLOR | R4: BODY COLOR | T4: TRIM | AK4: ARTWORK: FRONT | AN4: COLOR WAYS | AS4: DESCRIPTION:
A5: M086350911 | K5: and | M5: pink | T5: TRIM NAME: | U5: TRIM #: | V5: FINISH: | W5: SIZE: | X5: VENDOR: | Y5: PLACEMENT: | Z5: QTY: | AP5: Step1 | AQ5: Step2 | AR5: Step3 | AS5: Step 4 | AT5: Step5 | AU5: Step 6 | AW5: LABEL FRONT | BB5: HANG TAG
A6: sketch | C6: sketch | F6: Fabric Swatch | K6: PROCESS | M6: INK COLORS | N6: INK COLORS | O6: INK COLORS | P6: INK COLORS | Q6: INK COLORS | R6: INK COLORS | T6: drawstring | U6: 1 | W6: 1/4 inch | Y6: waistband | Z6: 1
J7: 1 | AN7: MARBLE
K8: 18"x20" | M8: pink | AN8: GRANITE
AN9: SPECKLE
J10: 2 | AW10: LABEL BACK
AG11: PLACEMENT | AH11: FRONT:
J13: 3
J16: 4
T17: FABRIC: | AW17: CARE LABEL
AK18: ARTWORK:BACK
J19: BACK | T19: WASHING / FINISHING: | AG19: PLACEMENT | AH19: BACK:
A21: FABRIC | B21: DESCRIPTION | E21: ARTICLE/MILL | F21: COLOR 1 | G21: COLOR 2 | H21: COLOR 3
A22: polyester spandex | B22: 20gg poly spandex | E22: #35 Michael Levine | F22: pink | J22: 1
AW23: LABELS / PACKAGING
AX24: LABEL # | AY24: COLOR: | AZ24: QTY: | BA24: VENDOR: | BB24: PLACEMENT:
J25: 2 | AW25: MAIN LABEL | AX25: 1 | AY25: White | AZ25: 1 | BB25: center back at waist
AW26: COUNTRY OF ORIGIN | AY26: Vietnam
AW27: CARE LABEL | AZ27: 1
AW28: CARE CONTENT | AX28: Machine wash cold with like colors. Gentle cycle. Tumble dry low.
J29: 3 | AW29: SIZE LABEL | AX29: M
AW30: HANG TAG | AZ30: 1
J32: 4

Sheet SPECIFICATIONS SHEET
G2: STYLE #
A8: SPEC SHEET
A10: STYLE #
A11: VENDOR: | G11: CONTACT: | J11: TEL:
A12: DELIVERY | I12: FLAT SKETCH FRONT
A13: SAMPLE TYPE | D13: IN-DATE | E13: STATUS
A14: ORIGINAL SAMPLE
A15: FIRST SAMPLE
A16: SECOND SAMPLE
A17: PRE-PRO SAMPLE
A18: PRODUCTION SAMPLE
A19: T.O.P SAMPLE
A21: ALL MENS SAMPLES (MEDIUM)
A22: ALL WOMENS SAMPLES (SMALL)
A24: COMMENTS:
A31: P.O.M | B31: MEASUREMENTS IN INCHES | G31: TARGET | H31: 1ST SAMPLE | I31: CORRECTIONS | J31: 2ND SAMPLE | K31: CORRECTIONS | L31: PRE-PRO | M31: CORRECTIONS | N31: TOP
A33: 1 | B33: Waist to hem at CF | G33: 35.5
A34: 2 | B34: Waist to hem at CB | G34: 35.75
A35: 3 | B35: Waist to hem at side | G35: 36
A36: 4 | B36: Front rise | G36: 6.5
A37: 5 | B37: Back rise | G37: 8
A38: 6 | B38: Inseam | G38: 28
A39: 7 | B39: Across waist | G39: 13.5
A40: 8 | B40: Low hip: x inches below CF waist | G40: 16 1/2 red, 6 3/4 blue
A41: 9 | B41: High hip: 3" up from low hip | G41: 16 1/2 blue, 15 1/2 red
A42: 10 | B42: Thigh: 1" down from crotch | G42: 8.25
A43: 11 | B43: Knee: @ 1/2 inch inseam | G43: 5
A44: 12 | B44: Leg opening | G44: 4
A45: 13 | B45: Waist band height at CF | G45: 1.75
A46: 14 | B46: Waist band height at CB | G46: 1.75
A47: 15 | B47: Hem height | G47: 0.5
A48: 16 | B48: Crotch inset height (females) | G48: 2.25
A49: 17 | B49: Crotch inset width (females) | G49: 1.75
A50: 18 | B50: Crotch inset height (males) | G50: n/a
A51: 19 | B51: Crotch inset length (males) | G51: n/a
A52: 20 | B52: Logo placement (from waist to center of logo) and (from side fd to ctr logo( | G52: a. 1/2 , b. 6.5

Sheet POINTS OF MEASURE (POM)

Sheet Leggings GRADING
A1: Production Grading for Leggings
A2: Style: | B2: SHK001 | C2: DATE | E2: 2021-01-21 | O2: S | P2: M | Q2: L | R2: XL | S2: TOL +/-
A3: Name: | B3: 0 | K3: 1 | L3: Waist to hem at CF | O3: 0 | P3: 0.5 | Q3: 1 | R3: 1.5 | S3: 0.25
A4: Division: | B4: Women | C4: Pattern Maker: | E4: 0
A5: Season: | B5: Spring 2021
A6: Pattern #: | B6: 0
A7: Fabric Shrinkage | B7: Piece dyed | C7: PO# | E7: 0
A8: Garment Shrinkage | B8: 1/16 inch shrinkage | C8: Colors: | E8: 0
B10: Leggings | E10: BEFORE WASH MEASUREMENTS
A11: POM | B11: Description | C11: Tol(+) | D11: Tol(-) | E11: Small | F11: Medium | G11: Large | H11: X-Large | I11: XX-Large
A12: 1 | B12: Waist to hem at CF | C12: 0.25 | D12: 0.25 | E12: =F12-0.5 -> 35 | F12: 35.5 | G12: =F12+1 -> 36.5 | H12: =F12+1.5 -> 37 | I12: =F12+2 -> 37.5
A13: 2 | B13: Waist to hem at CB | C13: 0.25 | D13: 0.25 | E13: =F13-0.5 -> 35.25 | F13: 35.75 | G13: =F13+1 -> 36.75 | H13: =F13+1.5 -> 37.25 | I13: =F13+2 -> 37.75
A14: 3 | B14: Waist to hem at side | C14: 0.25 | D14: 0.25 | E14: =F14-0.5 -> 35.5 | F14: 36 | G14: =F14+1 -> 37 | H14: =F14+1.5 -> 37.5 | I14: =F14+2 -> 38
A15: 4 | B15: Front rise | C15: 0.25 | D15: 0.25 | E15: =F15-0.25 -> 6.25 | F15: 6.5 | G15: =F15+0.25 -> 6.75 | H15: =F15+0.5 -> 7 | I15: =F15+1 -> 7.5 | K15: 2 | L15: Waist to hem at CB | O15: 0 | P15: 0.5 | Q15: 1 | R15: 1.5 | S15: 0.25
A16: 5 | B16: Back rise | C16: 0.25 | D16: 0.25 | E16: =F16-0.375 -> 7.625 | F16: 8 | G16: =F16+0.5 -> 8.5 | H16: =F16+0.75 -> 8.75 | I16: =F16+1 -> 9
A17: 6 | B17: Inseam | C17: 0.125 | D17: 0.125 | E17: =F17-0.375 -> 27.625 | F17: 28 | G17: =F17+0.75 -> 28.75 | H17: =F17+1.125 -> 29.125
A18: 7 | B18: Across waist | C18: 0.25 | D18: 0.25 | E18: =F18-0.25 -> 13.25 | F18: 13.5 | G18: =F18+1 -> 14.5 | H18: =F18+2 -> 15.5 | I18: =F18+1 -> 14.5
A19: 8 | B19: Low hip: x inches below CF waist | C19: 0.25 | D19: 0.25 | E19: =F19-0.5 -> 16 | F19: 16.5 | G19: =F19+1 -> 17.5 | H19: =F19+2 -> 18.5 | I19: =F19+3 -> 19.5
A20: 9 | B20: Low hip: x inches below CF waist | C20: 0.25 | D20: 0.25 | E20: =F20-0.5 -> 6.25 | F20: 6.75 | G20: =F20+1 -> 7.75 | H20: =F20+2 -> 8.75 | I20: =F20+3 -> 9.75
A21: 10 | B21: High hip: 3 inches up from low hip | C21: 0.25 | D21: 0.25 | E21: =F21-0.5 -> 15 | F21: 15.5 | G21: =F21+1 -> 16.5 | H21: =F21+2 -> 17.5 | I21: =F21+3 -> 18.5
A22: 11 | B22: High hip: 3 inches up from low hip (measurement 2) | C22: 0.25 | D22: 0.25 | E22: =F22-0.5 -> 16 | F22: 16.5 | G22: =F22+1 -> 17.5 | H22: =F22+2 -> 18.5 | I22: =F22+3 -> 19.5
A23: 12 | B23: Thigh: 1 inch down from crotch | C23: 0.125 | D23: 0.125 | E23: =F23-0.25 -> 8 | F23: 8.25 | G23: =F23+0.5 -> 8.75 | H23: =F23+0.75 -> 9 | I23: =F23+1 -> 9.25
A24: 13 | B24: Knee: @ 1/2 inch inseam | C24: 0.125 | D24: 0.125 | E24: =F24-0.25 -> 4.75 | F24: 5 | G24: =F24+0.5 -> 5.5 | H24: =F24+0.75 -> 5.75 | I24: =F24+1 -> 6
A25: 14 | B25: Leg opening | C25: 0.125 | D25: 0.125 | E25: =F25-0.25 -> 3.75 | F25: 4 | G25: =F25+0.375 -> 4.375 | H25: =F25+0.375 -> 4.375 | I25: =F25+0.375 -> 4.375
A26: 15 | B26: Waistband height at CF | C26: 0.125 | D26: 0.125 | E26: =F26-0 -> 1.75 | F26: 1.75 | G26: =F26+0 -> 1.75 | H26: =F26+0.25 -> 2 | I26: =F26+0.5 -> 2.25 | O26: 0 | P26: 0.5 | Q26: 1 | R26: 1.5 | S26: 0.25
A27: 16 | B27: Waistband height at CB | C27: 0.125 | D27: 0.125 | E27: =F27-0 -> 1.75 | F27: 1.75 | G27: =F27+0 -> 1.75 | H27: =F27+0.25 -> 2 | I27: =H27+0.5 -> 2.5 | K27: 3 | L27: Waist to hem at side
A28: 17 | B28: Hem height | C28: 0.125 | D28: 0.125 | E28: =F28-0 -> 0.5 | F28: 0.5 | G28: =F28+0 -> 0.5 | H28: =F28+0 -> 0.5 | I28: =F28+0 -> 0.5
A29: 18 | B29: Crotch inset height (females) | C29: 0.125 | D29: 0.125 | E29: =F29-0 -> 2.25 | F29: 2.25 | G29: =F29+0 -> 2.25 | H29: =F29+0.25 -> 2.5 | I29: =F29+0.5 -> 2.75
A30: 19 | B30: Crotch inset width (females) | C30: 0.125 | D30: 0.125 | E30: =F30-0 -> 1.75 | F30: 1.75 | G30: =F30+0 -> 1.75 | H30: =F30+0.25 -> 2 | I30: =F30+0.5 -> 2.25
A31: 20 | B31: Logo placement (waist to center of logo) | C31: 0.125 | D31: 0.125 | E31: =F31-0 -> 0.5 | F31: 0.5 | G31: =F31+0 -> 0.5 | H31: =F31+0 -> 0.5 | I31: =F31+0 -> 0.5
A32: 21 | B32: Logo placement (side to ctr logo) | C32: 0.125 | D32: 0.125 | E32: =F32-0 -> 6.5 | F32: 6.5 | G32: =F32+0 -> 6.5 | H32: =F32+0.25 -> 6.75 | I32: =F32+0.5 -> 7
A33: 22
A34: 23
A35: 24
A36: 25
A37: 26
A38: 27 | K38: 4 | L38: Front rise | O38: 0 | P38: 0.25 | Q38: 0.5 | R38: 0.75 | S38: 0.125
A39: 28
A40: 29
A41: 30
A42: 31
A43: 32
A44: 33
A45: 34
A46: 35
A47: 36
A48: 37
A49: 38
A50: 39 | K50: 5 | L50: Back rise | O50: 0 | P50: 0.375 | Q50: 0.75 | R50: 1.125 | S50: 0.125
K62: 6 | L62: Inseam | O62: 0 | P62: 0.25 | Q62: 0.5 | R62: 0.75 | S62: 0.125
K74: 7 | L74: Across waist | O74: 0 | P74: 0.5 | Q74: 1 | R74: 2 | S74: 0.25
K86: 8 | L86: Low hip: x inches below CF waist | O86: 0 | P86: 0.5 | Q86: 1 | R86: 2 | S86: 0.25
K98: 9 | L98: High hip: 3" up from low hip | O98: 0 | P98: 0.5 | Q98: 1 | R98: 2 | S98: 0.25
K110: 10 | L110: Thigh : 1" down from the crotch | O110: 0 | P110: 0.25 | Q110: 0.5 | R110: 0.75 | S110: 0.125
K122: 11 | L122: Knee: @ 1/2 inseam | O122: 0 | P122: 0.25 | Q122: 0.5 | R122: 0.75 | S122: 0.125
K135: 12 | L135: Leg opening | O135: 0 | P135: 0.25 | Q135: 0.375 | R135: 0.375 | S135: 0.125
K146: 13 | L146: Waist band height at CF | O146: 0 | P146: 0 | Q146: 0 | R146: 0.25 | S146: 0.125
K158: 14 | L158: Waist band height at CB | O158: 0 | P158: 0 | Q158: 0 | R158: 0.25 | S158: 0.125
K170: 15 | L170: Hem height | O170: 0 | P170: 0 | Q170: 0 | R170: 0 | S170: 0.125
K182: 16 | L182: Crotch inset height (females) | O182: 0 | P182: 0 | Q182: 0 | R182: 0.25 | S182: 0.125
K194: 17 | L194: Crotch inset width (females) | O194: 0 | P194: 0 | Q194: 0 | R194: 0.25 | S194: 0.125
K206: 18 | L206: Crotch inset height (males) | O206: 0 | P206: 0 | Q206: 0.25 | R206: 0.5 | S206: 0.125
K218: 19 | L218: Crotch inset length (males) | O218: 0 | P218: 0 | Q218: 0.25 | R218: 0.5 | S218: 0.125
L219: a. at inseam (green)
L220: b. On the back (red)
K230: 20 | L230: Logo Placement | O230: 0 | P230: 0 | Q230: 0 | R230: 0.25 | S230: 0.125
L231: a. from waist to center of logo
L232: b. from side fold to center of logo

Sheet SEWING CONSTRUCTION
D1: Style Name | G1: SEWING DETAILS | K1: SEASON: | M1: Your logo
A2: Production grading for Tops | B2: Column1
A3: Style: | B3: SHK001
A4: Name: | B4: 0
A5: Division: | B5: Women
A6: Season: | B6: Spring 2021
A7: Pattern #: | B7: 0
A8: Fabric Shrinkage | B8: Piece dyed
A9: Garment Shrinkage | B9: 1/16 inch
A10: Cut Trim Length | B10: S | C10: M | D10: L | E10: XL | F10: XXL
B11: =C11-0.5 -> 35 | C11: 35.5 | D11: =C11+1 -> 36.5 | E11: =C11+1.5 -> 37 | F11: =C11+2 -> 37.5
A14: Garment Construction Information
A15: Main Thread | B15: Tex: 40 | C15: SPI: 8-10 | D15: 100% polyester
A16: Serger Thread | B16: Tex: 40 | C16: SPI: 8-10 | D16: 100% polyester
A17: Wash Instruction | B17: Machine wash warm, low tumble dry
A18: Pressing Instruction
A19: Special Instruction
A20: Special Instruction
A22: Sewing Specifications
A23: Procedure | B23: Seam allow | C23: Sew Stitch | D23: Topstitch | E23: Comments
A24: Side seam | B24: 0.25 | C24: 4 thread overlock
A25: Inseam | B25: 0.25 | C25: flatlock
A26: Rise (front and back) | B26: 0.25 | C26: flatlock
A27: Waistband to body | B27: 0.25 | C27: flatlock
A28: Top of waistband | B28: 0.25 | C28: no stitch
A29: Waist drawstring | B29: 0.5 | C29: none
A30: Crotch inset | B30: 0.5 | C30: flatlock
